fUSD/lending_fUSD_20240217
["ID","MTS","AMOUNT","RATE_DAILY","PERIOD"]
[314276748,1708139487397,-1935.87,0.00054794,120]
[314276749,1708139487405,-554.4,0.00054794,120]
[314276750,1708139487414,-972.28,0.00054794,120]
[314276751,1708139487424,-577.36,0.00054794,120]
[314276752,1708139487433,-1034.46,0.00054794,120]
[314276753,1708139487442,-500.0,0.00054794,120]
[314276754,1708139487451,-879.44,0.00054794,120]
[314276755,1708139487460,-692.92,0.00054794,120]
[314276756,1708139487469,-718.43,0.00054794,120]
[314276757,1708139487478,-5123.64,0.00054794,120]
[314276758,1708139487487,-250.0,0.00054794,60]
[314276759,1708139487496,-167.5820077,0.00054794,70]
[314276760,1708139487505,-12479.19,0.00054794,120]
[314276761,1708139487514,-1145.97,0.00054794,120]
[314276762,1708139487524,-738.56,0.00054794,120]
[314276763,1708139487533,-579.77221444,0.00054794,120]
[314276764,1708139487542,-535.74101078,0.00054795,120]
[314276765,1708139487551,-149142.78,0.00054795,30]
[314276766,1708139487561,-1983.47,0.00054795,30]
[314276767,1708139487570,-161.04,0.00054795,30]
[314276768,1708139487579,-500.0,0.00054795,120]
[314276769,1708139487588,-500.0,0.00054795,120]
[314276770,1708139487597,-500.0,0.00054795,120]
[314276771,1708139487607,-500.0,0.00054795,120]
[314276772,1708139487615,-500.0,0.00054795,120]
[314276773,1708139487624,-623.94045744,0.00054795,120]
[314276774,1708139487633,-200.0,0.000548,120]
[314276775,1708139487642,-2000.0,0.000548,120]
[314276776,1708139487651,-5000.0,0.000548,120]
[314276777,1708139487660,-152.0,0.00054809,5]
[314276778,1708139487669,-800.0,0.00054853,120]
[314276779,1708139487678,-12096.01351679,0.00054882,30]
[314276780,1708139487687,-598.52835785,0.00054888,120]
[314276781,1708139487696,-25000.0,0.000549,120]
[314276782,1708139487705,-233575.46420755,0.000549,30]
[314276783,1708139487713,-1019.0,0.000549,120]
[314276784,1708139487722,-918.9673762,0.000549,31]
[314276785,1708139487731,-300.0,0.000549,31]
[314276786,1708139487740,-210.76603901,0.0005495,120]
[314276787,1708139487749,-200.0,0.00054987,94]
[314276788,1708139487758,-200.0,0.00054987,92]
[314276789,1708139487767,-200.0,0.00054987,90]
[314276790,1708139487777,-1000.0,0.0005499,60]
[314276791,1708139487786,-181.0,0.00054995,120]
[314276792,1708139487797,-200.0,0.00054999,120]
[314276793,1708139487805,-200.0,0.00054999,120]
[314276794,1708139487814,-200.0,0.00054999,120]
[314276795,1708139487823,-500.0,0.00054999,120]
[314276796,1708139487832,-123825.08733312,0.00055,30]
[314276797,1708139487841,-1020.0,0.00055,120]
[314276798,1708139487850,-2000.0,0.00055,120]
[314276799,1708139487858,-5403.6190007,0.00055,120]
[314276800,1708139487868,-24151.11589672,0.00055,14]
[314276801,1708139487877,-2176.33520686,0.00055,30]
[314276802,1708139487887,-11800.0,0.00055,120]
[314276803,1708139487896,-3370.23517286,0.00055,120]
[314276804,1708139487906,-34062.90537197,0.00055,2]
[314276805,1708139487915,-3299.0,0.00055,120]
[314276806,1708139487924,-10275.03221876,0.00055,30]
[314276807,1708139487933,-127197.31328937,0.00055,30]
[314276808,1708139488110,-272802.68671063,0.00055,30]
[314276809,1708139488119,-75000.0,0.00055,120]
[314276810,1708139488128,-81737.79405755,0.00055,2]
[314276811,1708139488137,-300.0,0.00055,56]
[314276812,1708139488146,-824.13902699,0.00055,120]
[314276813,1708139488155,-44830.05661102,0.00055,120]
[314276814,1708139488164,-150.0,0.00055,120]
[314276815,1708139488173,-500.0,0.00055,7]
[314276816,1708139488182,-627.48706777,0.00055,120]
[314276817,1708139488191,-1255.0017946,0.00055,120]
[314276818,1708139488200,-321.86004819,0.00055,2]
[314276819,1708139488209,-313.95855664,0.00055,55]
[314276820,1708139488218,-165.0,0.00055,120]
[314276821,1708139488227,-217.0,0.00055,30]
[314276822,1708139488235,-216.0,0.00055,30]
[314276823,1708139488244,-10000.0,0.00055,31]
[314276824,1708139488253,-10000.0,0.00055,31]
[314276825,1708139488262,-10000.0,0.00055,31]
[314276826,1708139488271,-10000.0,0.00055,31]
[314276827,1708139488280,-10000.0,0.00055,31]
[314276828,1708139488289,-10000.0,0.00055,31]
[314276829,1708139488298,-6440.30969771,0.00055,31]
[314276830,1708139488307,-238029.83684904,0.00055,30]
[314276831,1708139488315,-49201.34080231,0.00055,30]
[314276832,1708139488324,-216.0,0.00055,31]
[314276833,1708139488333,-178.0,0.00055,71]
[314276834,1708139488342,-611.78347656,0.00055,7]
[314276835,1708139488350,-152.63980413,0.00055,120]
[314276836,1708139488359,-21397.40726037,0.00055,30]
[314276837,1708139488368,-800.0,0.00055,30]
[314276838,1708139488377,-594.0,0.00055,45]
[314276839,1708139488386,-200.0,0.00055,34]
[314276840,1708139488395,-5743.832757,0.00055,100]
[314276841,1708139488405,-150.0,0.00055,40]
[314276842,1708139488413,-185.453263,0.00055,40]
[314276843,1708139488422,-1910.565033,0.00055,40]
[314276844,1708139488431,-1990.441194,0.00055,40]
[314276845,1708139488441,-160.0,0.00055,120]
[314276846,1708139488450,-699.2672,0.00055,30]
[314276847,1708139488459,-699.2672,0.00055,30]
[314276848,1708139488469,-200.77807029,0.00055,30]
[314276849,1708139488478,-192.82733601,0.00055,30]
[314276850,1708139488487,-1388.6972,0.00055,30]
[314276851,1708139488496,-340.64887819,0.00055068,2]
[314276852,1708139488505,-500.0,0.00055068,120]
[314276853,1708139488514,-739.89,0.00055068,120]
[314276854,1708139488523,-234.61051149,0.00055068,120]
[314276855,1708139488532,-615.82,0.00055068,120]
[314276856,1708139488541,-521.38,0.00055068,2]
[314276857,1708139488550,-526.92,0.00055068,120]
[314276858,1708139488559,-500.0,0.00055068,120]
[314276859,1708139488568,-1162.21,0.00055068,120]
[314276860,1708139488577,-500.0,0.00055068,2]
[314276861,1708139488586,-1393.94,0.00055068,120]
[314276862,1708139488596,-1028.76,0.00055068,2]
[314276863,1708139488606,-657.81,0.00055068,120]
[314276864,1708139488615,-500.0,0.00055068,120]
[314276865,1708139488624,-523.96,0.00055068,120]
[314276866,1708139488633,-854.01,0.00055068,120]
[314276867,1708139488643,-1495.02,0.00055068,120]
[314276868,1708139488652,-1165.59,0.00055068,120]
[314276869,1708139488661,-636.17,0.00055068,120]
[314276870,1708139488670,-893.76,0.00055068,120]
[314276871,1708139488679,-622.67,0.00055068,120]
[314276872,1708139488688,-3136.01,0.00055068,120]
[314276873,1708139488698,-5024.34,0.00055068,120]
[314276874,1708139488707,-502.24,0.00055068,120]
[314276875,1708139488716,-569.8,0.00055068,120]
[314276876,1708139488724,-354.71468194,0.00055068,120]
[314276877,1708139488733,-556.89,0.00055068,120]
[314276878,1708139488742,-873.0,0.00055068,120]
[314276879,1708139488751,-1593.36,0.00055068,120]
[314276880,1708139488760,-3220.88,0.00055068,120]
[314276881,1708139488768,-519.51,0.00055068,120]
[314276882,1708139488778,-500.0,0.00055068,120]
[314276883,1708139488787,-937.4,0.00055068,120]
[314276884,1708139488796,-577.85,0.00055068,120]
[314276885,1708139488805,-1846.34,0.00055068,120]
[314276886,1708139488814,-1210.8,0.00055068,14]
[314276887,1708139488824,-1111.25,0.00055068,120]
[314276888,1708139488833,-783.66,0.00055068,120]
[314276889,1708139488842,-567.1,0.00055068,120]
[314276890,1708139488851,-523.09,0.00055068,120]
[314276891,1708139488860,-500.0,0.00055068,120]
[314276892,1708139488869,-2129.66,0.00055068,120]
[314276893,1708139488878,-1935.87,0.00055068,120]
[314276894,1708139488887,-554.4,0.00055068,120]
[314276895,1708139488896,-972.28,0.00055068,120]
[314276896,1708139488905,-577.36,0.00055068,120]
[314276897,1708139488914,-1034.46,0.00055068,120]
[314276898,1708139488923,-512.67530741,0.00055068,120]
[314276899,1708139488933,-879.44,0.00055068,120]
[314276900,1708139488945,-692.92,0.00055068,120]
[314276901,1708139488954,-718.43,0.00055068,120]
[314276902,1708139488963,-5123.64,0.00055068,120]
[314276903,1708139488973,-12479.19,0.00055068,120]
[314276904,1708139488982,-1145.97,0.00055068,120]
[314276905,1708139488991,-738.56,0.00055068,120]
[314276906,1708139489000,-389.44,0.00055068,30]
[314276907,1708139489009,-151.021788,0.00055148,60]
[314276908,1708139489127,-337.700162,0.00055342,120]
[314276909,1708139489136,-739.89,0.00055342,120]
[314276910,1708139489146,-615.82,0.00055342,120]
[314276911,1708139489155,-521.38,0.00055342,2]
[314276912,1708139489165,-526.92,0.00055342,120]
[314276913,1708139489174,-499.34942098,0.00055342,120]
[314276914,1708139489183,-1162.21,0.00055342,120]
[314276915,1708139489192,-589.71593522,0.00055342,2]
[314276916,1708139489201,-1393.94,0.00055342,120]
[314276917,1708139489210,-1028.76,0.00055342,2]
[314276918,1708139489220,-657.81,0.00055342,120]
[314276919,1708139489229,-517.71927557,0.00055342,120]
[314276920,1708139489238,-523.96,0.00055342,120]
[314276921,1708139489247,-854.01,0.00055342,120]
[314276922,1708139489256,-1495.02,0.00055342,120]
[314276923,1708139489265,-1165.59,0.00055342,120]
[314276924,1708139489274,-636.17,0.00055342,120]
[314276925,1708139489282,-893.76,0.00055342,120]
[314276926,1708139489292,-622.67,0.00055342,120]
[314276927,1708139489301,-3136.01,0.00055342,120]
[314276928,1708139489310,-5024.34,0.00055342,120]
[314276929,1708139489319,-502.24,0.00055342,120]
[314276930,1708139489328,-569.8,0.00055342,120]
[314276931,1708139489337,-500.0,0.00055342,120]
[314276932,1708139489346,-500.0,0.00055342,120]
[314276933,1708139489355,-500.0,0.00055342,120]
[314276934,1708139489364,-619.31635118,0.00055342,120]
[314276935,1708139489372,-556.89,0.00055342,120]
[314276936,1708139489381,-873.0,0.00055342,120]
[314276937,1708139489390,-1593.36,0.00055342,120]
[314276938,1708139489399,-3220.88,0.00055342,120]
[314276939,1708139489408,-519.51,0.00055342,120]
[314276940,1708139489417,-500.0,0.00055342,120]
[314276941,1708139489427,-937.4,0.00055342,120]
[314276942,1708139489435,-577.85,0.00055342,120]
[314276943,1708139489444,-1846.34,0.00055342,120]
[314276944,1708139489453,-1210.8,0.00055342,14]
[314276945,1708139489462,-1111.25,0.00055342,120]
[314276946,1708139489471,-783.66,0.00055342,120]
[314276947,1708139489480,-567.1,0.00055342,120]
[314276948,1708139489490,-523.09,0.00055342,120]
[314276949,1708139489499,-500.0,0.00055342,120]
[314276950,1708139489508,-2129.66,0.00055342,120]
[314276951,1708139489517,-1935.87,0.00055342,120]
[314276952,1708139489526,-554.4,0.00055342,120]
[314276953,1708139489535,-972.28,0.00055342,120]
[314276954,1708139489544,-577.36,0.00055342,120]
[314276955,1708139489553,-1034.46,0.00055342,120]
[314276956,1708139489562,-879.44,0.00055342,120]
[314276957,1708139489571,-692.92,0.00055342,120]
[314276958,1708139489580,-718.43,0.00055342,120]
[314276959,1708139489589,-5123.64,0.00055342,120]
[314276960,1708139489598,-12479.19,0.00055342,120]
[314276961,1708139489606,-1145.97,0.00055342,120]
[314276962,1708139489615,-738.56,0.00055342,120]
[314276963,1708139489625,-3566.0,0.00055345,120]
[314276964,1708139489634,-171.021799,0.00055448,58]
[314276965,1708139489643,-206.0,0.00055473,49]
[314276966,1708139489652,-200.0,0.000555,34]
[314276967,1708139489661,-740.1167482,0.00055616,120]
[314276968,1708139489669,-615.85135715,0.00055616,120]
[314276969,1708139489678,-521.46505714,0.00055616,2]
[314276970,1708139489687,-527.10569939,0.00055616,120]
[314276971,1708139489696,-1162.33682117,0.00055616,120]
[314276972,1708139489706,-1393.98,0.00055616,120]
[314276973,1708139489715,-1028.82186374,0.00055616,2]
[314276974,1708139489724,-657.865172,0.00055616,120]
[314276975,1708139489733,-523.99925884,0.00055616,120]
[314276976,1708139489742,-854.14488538,0.00055616,120]
[314276977,1708139489751,-1495.09447643,0.00055616,120]
[314276978,1708139489760,-1165.82254575,0.00055616,120]
[314276979,1708139489769,-636.24423765,0.00055616,120]
[314276980,1708139489778,-893.89685144,0.00055616,120]
[314276981,1708139489788,-622.81729683,0.00055616,120]
[314276982,1708139489798,-3136.23818569,0.00055616,120]
[314276983,1708139489807,-5024.57952522,0.00055616,120]
[314276984,1708139489817,-502.27019215,0.00055616,120]
[314276985,1708139489826,-569.83430409,0.00055616,120]
[314276986,1708139489835,-556.9257303,0.00055616,120]
[314276987,1708139489844,-873.1771491,0.00055616,120]
[314276988,1708139489853,-1593.58442545,0.00055616,120]
[314276989,1708139489862,-3220.93753838,0.00055616,120]
[314276990,1708139489872,-519.58152051,0.00055616,120]
[314276991,1708139489881,-263.65197424,0.00055616,120]
[314276992,1708139489890,-937.58562287,0.00055616,120]
[314276993,1708139489899,-578.05546673,0.00055616,120]
[314276994,1708139489909,-1846.57681653,0.00055616,120]
[314276995,1708139489918,-1210.98750766,0.00055616,14]
[314276996,1708139489927,-1111.36592883,0.00055616,120]
[314276997,1708139489940,-783.88023886,0.00055616,120]
[314276998,1708139489949,-567.23084127,0.00055616,120]
[314276999,1708139489958,-523.1505078,0.00055616,120]
[314277000,1708139489967,-405.09357718,0.00055616,120]
[314277001,1708139489976,-2129.73527921,0.00055616,120]
[314277002,1708139489986,-1935.93744459,0.00055616,120]
[314277003,1708139489995,-554.63280479,0.00055616,120]
[314277004,1708139490004,-972.3360032,0.00055616,120]
[314277005,1708139490014,-577.42,0.00055616,120]
[314277006,1708139490023,-1034.67,0.00055616,120]
[314277007,1708139490033,-879.5879206,0.00055616,120]
[314277008,1708139490043,-693.09064264,0.00055616,120]
[314277009,1708139490052,-718.48237577,0.00055616,120]
[314277010,1708139490071,-5123.67621505,0.00055616,120]
[314277011,1708139490083,-12479.42148471,0.00055616,120]
[314277012,1708139490092,-1146.06772176,0.00055616,120]
[314277013,1708139490101,-738.60587719,0.00055616,120]
[314277014,1708139490111,-152.84887593,0.00055665,78]
[314277015,1708139490120,-918.9673762,0.000559,33]
[314277016,1708139490130,-356.405268,0.000559,33]
[314277017,1708139490139,-941.7,0.000559,7]
[314277018,1708139490148,-200.0,0.00055987,90]
[314277019,1708139490158,-200.0,0.00055987,75]
[314277020,1708139490167,-1254.4,0.0005599,6]
[314277021,1708139490176,-100000.0,0.00056,46]
[314277022,1708139490186,-2000.0,0.00056,120]
[314277023,1708139490195,-5000.0,0.00056,60]
[314277024,1708139490204,-270.64,0.00056,120]
[314277025,1708139490213,-2000.0,0.00056,110]
[314277026,1708139490222,-180.0,0.00056,15]
[314277027,1708139490231,-160.0,0.00056,120]
[314277028,1708139490240,-300.0,0.00056,57]
[314277029,1708139490250,-3000.0,0.00056,52]
[314277030,1708139490259,-5000.0,0.00056,66]
[314277031,1708139490269,-10000.0,0.00056,60]
[314277032,1708139490278,-160.0,0.00056,120]
[314277033,1708139490287,-800.0,0.00056,30]
[314277034,1708139490296,-200.0,0.00056,35]
[314277035,1708139490305,-173.0,0.00056,120]
[314277036,1708139490315,-150.0,0.00056,120]
[314277037,1708139490324,-1098.96,0.00056001,2]
[314277038,1708139490333,-4936.1,0.00056086,117]
[314277039,1708139490342,-151.021788,0.00056148,67]
[314277040,1708139490351,-300.0,0.000562,120]
[314277041,1708139490360,-72088.08920102,0.000562,5]
[314277042,1708139490369,-5000.0,0.000562,120]
[314277043,1708139490378,-151.021799,0.00056448,65]
[314277044,1708139490387,-1328.1721762,0.000565,15]
[314277045,1708139490396,-240.0,0.000565,100]
[314277046,1708139490405,-200.0,0.000565,36]
[314277047,1708139490415,-189.286255,0.000565,120]
[314277048,1708139490424,-160.0,0.00056521,120]
[314277049,1708139490433,-153.89569785,0.00056556,69]
[314277050,1708139490442,-51520.79845242,0.00056566,120]
[314277051,1708139490458,-260906.69840913,0.00056566,120]
[314277052,1708139490475,-500.0,0.0005041,60]
[314277053,1708139490484,-12791.65951167,0.00056566,120]
[314277054,1708139490522,-149.58131136,0.00056566,120]
[314277055,1708139490533,-11293.86600413,0.00056566,120]
[314277056,1708139490786,-552.23081263,0.00049315,60]
[314277057,1708139490795,-152.44500841,0.00049315,14]
[314277058,1708139490807,-478.71717059,0.00049315,14]
[314277059,1708139490817,-548.51,0.00051506,60]
[314277060,1708139490826,-3982.17282941,0.00056566,120]
[314277061,1708139490838,-2688.3521942,0.00056566,120]
[314277062,1708139490849,-2212.0210525,0.00056566,120]
[314277063,1708139490860,-1711.8021486,0.00056566,120]
[314277064,1708139490872,-269.49698536,0.00056566,120]
[314277065,1708139490954,-631.162179,0.00049315,14]
[314277066,1708139490964,-623.45282094,0.00049315,14]
[314277067,1708139491017,-710.612,0.00044068,6]
[314277068,1708139491030,-403.2002699,0.00044068,6]
[314277069,1708139491395,-150.0,0.00038167,2]
[314277070,1708139491405,-150.0,0.00038493,2]
[314277071,1708139491414,-150.0,0.00038724,2]
[314277072,1708139491423,-75.98170752,0.00039039,2]
[314277073,1708139491444,-74.01829248,0.00039039,2]
[314277074,1708139491453,-150.0,0.00039531,2]
[314277075,1708139491462,-150.0,0.00039629,2]
[314277076,1708139491471,-150.0,0.0003967,2]
[314277077,1708139491480,-150.0,0.00039675,2]
[314277078,1708139491489,-149.50829583,0.00039681,2]
[314277085,1708140632072,-424.42649289,0.00022992,2]
[314277098,1708140637849,-112.99512112,0.00022992,2]
[314277099,1708140637859,-997.9501,0.00022993,2]
[314277100,1708140637867,-1358.37381383,0.00023001,2]
[314277101,1708140637876,-164.62838481,0.000249,2]
[314277102,1708140637885,-1593.45591278,0.00025,2]
[314277103,1708140637894,-281.19032007,0.00031247,90]
[314277104,1708140637903,-400.0,0.00031248,3]
[314277105,1708140637912,-150.0,0.00031248,3]
[314277106,1708140637921,-150.0,0.00031248,2]
[314277107,1708140637930,-4131.71918026,0.00031249,4]
[314277108,1708140637940,-586.08,0.00031249,2]
[314277109,1708140637951,-2566.85,0.00031249,2]
[314277110,1708140637960,-2483.63,0.00031249,2]
[314277111,1708140637969,-499.99,0.00031249,2]
[314277112,1708140637979,-333.0,0.0003125,2]
[314277113,1708140637991,-2174.0,0.000329,3]
[314277114,1708140638002,-444.0,0.0003425,2]
[314277115,1708140638012,-325.57397705,0.000348,2]
[314277116,1708140638021,-274.3,0.00034806,2]
[314277117,1708140638032,-290.25210645,0.00035168,7]
[314277118,1708140638042,-348.0,0.0003525,2]
[314277119,1708140638052,-192.5,0.00036103,120]
[314277120,1708140638063,-504.62,0.00036115,2]
[314277121,1708140638072,-1852.42,0.00036117,2]
[314277122,1708140638083,-1079.06,0.0003616,2]
[314277123,1708140638094,-23900.0,0.00036346,2]
[314277124,1708140638104,-8104.16,0.00036432,2]
[314277125,1708140638116,-2000.0,0.0003646,2]
[314277126,1708140638126,-150.0,0.00036495,2]
[314277127,1708140638136,-10000.0,0.000365,37]
[314277128,1708140638148,-2705.0,0.0003654,2]
[314277129,1708140638158,-4679.27,0.00036561,2]
[314277130,1708140638167,-200.0,0.00036567,2]
[314277131,1708140638177,-8104.16,0.00036642,2]
[314277132,1708140638186,-500.0,0.00036653,2]
[314277133,1708140638196,-856.83,0.00036729,2]
[314277134,1708140638205,-500.0,0.00036748,2]
[314277135,1708140638215,-150.0,0.00036752,2]
[314277136,1708140638224,-250.0,0.00036792,2]
[314277138,1708140638233,-512.36,0.00036794,2]
[314277139,1708140638242,-7714.58,0.00036794,2]
[314277140,1708140638251,-500.0,0.00036813,2]
[314277141,1708140638261,-8104.16,0.00036853,2]
[314277142,1708140638273,-571.92,0.00036871,2]
[314277143,1708140638286,-473.13466279,0.0003692,4]
[314277144,1708140638295,-371.05,0.00036941,2]
[314277145,1708140638304,-2816.13,0.00037004,2]
[314277146,1708140638313,-8104.16,0.00037063,2]
[314277147,1708140638323,-274.3,0.0003707,2]
[314277148,1708140638332,-3596.32,0.00037096,2]
[314277149,1708140638341,-1446.73,0.00037102,2]
[314277150,1708140638351,-250.0,0.00037132,111]
[314277151,1708140638361,-166.5,0.00037163,2]
[314277152,1708140638371,-250.0,0.00037204,2]
[314277153,1708140638380,-8104.16,0.00037274,2]
[314277154,1708140638389,-179.81,0.000374,2]
[314277155,1708140638398,-8104.16,0.00037484,2]
[314277156,1708140638407,-153.99,0.00037513,2]
[314277157,1708140638417,-8104.16,0.00037695,2]
[314277158,1708140638426,-153.99,0.00037838,2]
[314277159,1708140638435,-8104.16,0.00037905,2]
[314277160,1708140638445,-8104.16,0.00038116,2]
[314277161,1708140638457,-153.99,0.00038164,2]
[314277162,1708140638466,-877.1669,0.00038256,2]
[314277163,1708140638475,-300.0,0.00038286,2]
[314277164,1708140638484,-464.7027,0.00038315,2]
[314277165,1708140638493,-8104.16,0.00038326,2]
[314277166,1708140638502,-419.57,0.00038356,15]
[314277167,1708140638512,-152.74,0.00038356,2]
[314277168,1708140638521,-856.83,0.00038373,2]
[314277169,1708140638530,-153.99,0.0003849,2]
[314277170,1708140638540,-153.99,0.00038816,2]
[314277171,1708140638549,-335.35,0.00038839,2]
[314277172,1708140638558,-192.5,0.00038842,120]
[314277173,1708140638567,-500.0,0.00038932,2]
[314277174,1708140638575,-7668.7045088,0.00038935,2]
[314277175,1708140638585,-1243.81232994,0.00038978,4]
[314277176,1708140638594,-1000.0,0.00039032,2]
[314277177,1708140638603,-1182.63770087,0.00039034,4]
[314277178,1708140638612,-20498.40769296,0.00039035,12]
[314277179,1708140638622,-1409.05086448,0.00039035,11]
[314277180,1708140638631,-335.35,0.00039043,2]
[314277181,1708140638640,-1829.79513862,0.00039052,12]
[314277182,1708140638649,-165.59,0.00039078,2]
[314277183,1708140638658,-153.99,0.00039141,2]
[314277184,1708140638667,-335.35,0.00039248,2]
[314277185,1708140638676,-274.3,0.00039334,2]
[314277186,1708140638686,-335.35,0.00039452,2]
[314277187,1708140638695,-153.99,0.00039467,2]
[314277188,1708140638705,-1000.0,0.00039548,2]
[314277189,1708140638714,-2332.69906323,0.00039556,9]
[314277190,1708140638723,-115497.39,0.00039648,2]
[314277191,1708140638732,-300.0,0.00039656,2]
[314277192,1708140638741,-335.35,0.00039657,2]
[314277193,1708140638750,-0.49170417,0.00039681,2]
[314277194,1708140638760,-335.35,0.00039861,2]
[314277195,1708140638769,-343.05,0.000399,2]
[314277196,1708140638778,-5050.63,0.0004,30]
[314277197,1708140638787,-7341.08130703,0.0004,7]
[314277198,1708140638796,-2645.01335604,0.0004,2]
[314277199,1708140638805,-4424.71959691,0.0004,4]
[314277200,1708140638815,-856.83,0.00040017,2]
[314277201,1708140638823,-335.35,0.00040065,2]
[314277202,1708140638833,-180.0,0.00040192,2]
[314277203,1708140638842,-335.35,0.0004027,2]
[314277204,1708140638852,-335.35,0.00040474,2]
[314277205,1708140638861,-5349.65365055,0.00040669,11]
[314277206,1708140638870,-335.35,0.00040679,2]
[314277207,1708140638880,-777.0,0.00040797,2]
[314277208,1708140638889,-1528.574,0.00040797,7]
[314277209,1708140638898,-199.02203505,0.00040797,120]
[314277210,1708140638907,-155.80632865,0.00040797,10]
[314277211,1708140638916,-189.43353779,0.00040797,6]
[314277212,1708140638925,-1297.10873261,0.00040797,2]
[314277213,1708140638934,-701.82634713,0.00040797,30]
[314277214,1708140638943,-335.35,0.00040883,2]
[314277215,1708140638952,-335.35,0.00041087,2]
[314277216,1708140638961,-335.35,0.00041292,2]
[314277217,1708140638970,-335.35,0.00041496,2]
[314277218,1708140638980,-274.3,0.00041598,2]
[314277219,1708140638991,-856.83,0.00041661,2]
[314277220,1708140639001,-335.35,0.00041701,2]
[314277221,1708140639011,-888.0,0.00041797,2]
[314277222,1708140639020,-999.0,0.00041797,2]
[314277223,1708140639031,-7668.70450871,0.0004182,4]
[314277224,1708140639040,-335.35,0.00041905,2]
[314277225,1708140639049,-5349.65365055,0.00041921,11]
[314277226,1708140639058,-965.47916117,0.00042,7]
[314277227,1708140639068,-419.57,0.00042092,15]
[314277228,1708140639079,-335.35,0.00042109,2]
[314277229,1708140639090,-2332.69906319,0.00042177,10]
[314277230,1708140639099,-335.35,0.00042314,2]
[314277231,1708140639110,-335.35,0.00042518,2]
[314277232,1708140639119,-335.35,0.00042723,2]
[314277233,1708140639128,-856.83,0.00043305,2]
[314277234,1708140639137,-5349.65365055,0.00043317,11]
[314277235,1708140639147,-323.41851878,0.00043327,15]
[314277236,1708140639156,-219.90621448,0.00043327,19]
[314277237,1708140639165,-190.2291,0.00043417,2]
[314277238,1708140639174,-2002.8836,0.00043417,2]
[314277239,1708140639185,-682.4769,0.00043417,2]
[314277240,1708140639195,-74895.1511077,0.00043417,11]
[314277241,1708140639205,-83424.9782789,0.00043417,10]
[314277242,1708140639215,-7126.8228,0.00043427,2]
[314277243,1708140639225,-4690.1662,0.00043427,2]
[314277244,1708140639234,-16361.2903,0.00043427,2]
[314277245,1708140639244,-544.0504,0.00043427,2]
[314277246,1708140639255,-4698.9682,0.00043427,2]
[314277247,1708140639265,-2434.257,0.00043427,2]
[314277248,1708140639277,-118163.0918,0.00043427,2]
[314277249,1708140639289,-1134.5206,0.00043427,2]
[314277250,1708140639298,-151.021777,0.00043448,38]
[314277251,1708140639308,-112342.726662,0.00043507,11]
[314277252,1708140639318,-166849.956558,0.00043507,10]
[314277253,1708140639327,-219.90621448,0.00043547,20]
[314277254,1708140639337,-2664.923,0.00043647,2]
[314277255,1708140639346,-5349.65365055,0.00043846,11]
[314277256,1708140639356,-10699.3073011,0.00043846,11]
[314277257,1708140639366,-153.89569785,0.00043856,21]
[314277258,1708140639376,-5349.65365055,0.00043857,11]
[314277259,1708140639386,-274.3,0.00043862,2]
[314277260,1708140639395,-1243.81232994,0.00043867,5]
[314277261,1708140639405,-592.8676,0.00043867,2]
[314277262,1708140639414,-1154.9655,0.00043867,2]
[314277263,1708140639423,-4562.795,0.00043867,2]
[314277264,1708140639433,-472.7145,0.00043867,2]
[314277265,1708140639443,-5000.0,0.00043867,3]
[314277266,1708140639452,-196.52849666,0.00043867,18]